bitfinex/quotes_BTCUSD_20250226
["timestamp","ask_amount","ask_price","bid_price","bid_amount"]
[1740557478383,0.00041801,88379.0,88378.0,0.169725]
[1740557478585,0.3293,88427.0,88378.0,0.01454085]
[1740557478829,0.169652,88417.0,88381.0,0.0824]
[1740557479035,0.26208284,88448.0,88383.0,0.01454085]
[1740557479208,0.3293,88450.0,88390.0,0.01454085]
[1740557479417,0.36579089,88450.0,88384.0,0.0499]
[1740557479617,0.3293,88450.0,88391.0,0.0136]
[1740557479838,0.169642,88422.0,88401.0,0.01454085]
[1740557480016,0.169638,88424.0,88403.0,0.18421785]
[1740557480220,0.3293,88450.0,88405.0,0.01454085]
[1740557480424,0.555416,88451.0,88407.0,0.01454085]
[1740557480605,0.3293,88451.0,88383.0,0.1]
[1740557480807,0.3,88457.0,88385.0,0.01356]
[1740557481010,0.3293,88458.0,88389.0,0.1]
[1740557481268,0.3293,88458.0,88390.0,0.00158328]
[1740557481466,0.3,88457.0,88391.0,0.00158342]
[1740557481624,0.3,88453.0,88392.0,0.01454085]
[1740557481828,0.169654,88415.0,88400.0,0.01454085]
[1740557482032,0.3293,88458.0,88404.0,0.01454085]
[1740557482261,0.3293,88458.0,88409.0,0.01454085]
[1740557482469,0.3293,88458.0,88411.0,0.01454085]
[1740557482667,0.03646528,88457.0,88412.0,0.00158321]
[1740557482868,0.03646528,88457.0,88415.0,0.01454085]
[1740557482869,0.169631,88427.0,88415.0,0.01454085]
[1740557483254,0.169631,88427.0,88414.0,0.01454085]
[1740557483450,0.226139,88441.0,88414.0,0.01454085]
[1740557483750,0.169634,88426.0,88411.0,0.01454085]
[1740557483978,0.169625,88430.0,88414.0,0.169655]
[1740557484180,0.16963,88428.0,88415.0,0.01454085]
[1740557484338,0.16963,88428.0,88415.0,0.016124]
[1740557484986,0.0008494,88450.0,88421.0,0.22619]
[1740557485217,0.0008494,88450.0,88425.0,0.01454085]
[1740557485396,0.169605,88441.0,88427.0,0.01454085]
[1740557485600,0.0008494,88450.0,88429.0,0.01454085]
[1740557485782,0.555397,88458.0,88429.0,0.01454085]
[1740557485783,0.169596,88446.0,88433.0,0.169618]
[1740557485975,0.05410974,88478.0,88433.0,0.00158296]
[1740557486199,0.01162666,88477.0,88434.0,0.01454085]
[1740557486414,0.01162666,88477.0,88436.0,0.01454085]
[1740557486610,0.169597,88445.0,88438.0,0.01454085]
[1740557486815,0.3,88459.0,88438.0,0.01454085]
[1740557486986,0.169587,88451.0,88438.0,0.01612372]
[1740557487187,0.26269575,88475.0,88438.0,0.01612372]
[1740557487389,0.169578,88455.0,88438.0,0.01612372]
[1740557487592,0.05410974,88478.0,88439.0,0.01454085]
[1740557487793,0.05452826,88478.0,88447.0,0.01454085]
[1740557487989,0.05452826,88478.0,88448.0,0.01454085]
[1740557487990,0.22605,88476.0,88448.0,0.01454085]
[1740557488235,0.226073,88467.0,88452.0,0.01454085]
[1740557488408,0.00041852,88478.0,88452.0,0.01612341]
[1740557488615,0.169572,88458.0,88447.0,0.01454085]
[1740557488811,0.169574,88457.0,88449.0,0.01454085]
[1740557489335,0.169571,88459.0,88449.0,0.01454085]
[1740557489592,0.00041852,88478.0,88449.0,0.01454085]
[1740557489768,0.00041852,88478.0,88451.0,0.01454085]
[1740557490006,0.169555,88467.0,88455.0,0.169576]
[1740557490184,0.226065,88471.0,88456.0,0.01454085]
[1740557490408,0.169553,88468.0,88458.0,0.01454085]
[1740557490538,0.3,88475.0,88458.0,0.01454085]
[1740557490741,0.3,88475.0,88450.0,0.226115]
[1740557490742,0.00041852,88478.0,88421.0,0.1764]
[1740557490945,0.00041852,88478.0,88443.0,0.01336]
[1740557491146,0.00041852,88478.0,88436.0,0.169613]
[1740557491347,0.226099,88457.0,88445.0,0.01454085]
[1740557491572,0.169585,88451.0,88445.0,0.01454085]
[1740557492017,0.3,88475.0,88445.0,0.01454085]
[1740557492199,0.169591,88448.0,88445.0,0.01454085]
[1740557492404,0.169587,88450.0,88445.0,0.01454085]
[1740557492609,0.169584,88452.0,88445.0,0.01454085]
[1740557492762,0.169584,88452.0,88445.0,0.01466619]
[1740557492959,0.226096,88458.0,88446.0,0.01332]
[1740557493223,0.169571,88459.0,88448.0,0.16959]
[1740557493449,0.05410974,88491.0,88451.0,0.09046704]
[1740557493587,0.05410974,88491.0,88454.0,0.01454085]
[1740557493784,0.05410974,88491.0,88454.0,0.18570224]
[1740557493785,0.169557,88466.0,88454.0,0.18570224]
[1740557493989,0.3,88478.0,88454.0,0.18411985]
[1740557494188,0.226094,88459.0,88454.0,0.01454085]
[1740557494431,0.3,88483.0,88454.0,0.01454085]
[1740557494637,0.169565,88462.0,88454.0,0.01454085]
[1740557494837,0.169565,88462.0,88453.0,0.0765]
[1740557494838,0.169553,88468.0,88457.0,0.01454085]
[1740557495016,0.169554,88467.0,88459.0,0.01454085]
[1740557495424,0.169553,88468.0,88459.0,0.01454085]
[1740557495627,0.169557,88466.0,88457.0,0.01454085]
[1740557495829,0.3,88483.0,88457.0,0.01454085]
[1740557496031,0.3,88483.0,88454.0,0.01454085]
[1740557496236,0.3,88483.0,88453.0,0.0765]
[1740557496237,0.3,88479.0,88453.0,0.0765]
[1740557496583,0.226089,88461.0,88453.0,0.0765]
[1740557496748,0.3,88466.0,88453.0,0.0765]
[1740557496909,0.1,88513.0,88454.0,0.00158267]
[1740557497123,0.1,88513.0,88461.0,0.0453]
[1740557497124,0.3,88483.0,88461.0,0.0453]
[1740557497412,0.09999974,88528.0,88463.0,0.01454085]
[1740557497627,0.09999974,88528.0,88466.0,0.226075]
[1740557497851,0.3,88479.0,88469.0,0.16955]
[1740557498056,0.03554423,88496.0,88470.0,0.01612313]
[1740557498228,0.03554423,88496.0,88466.0,0.01454085]
[1740557498436,0.169534,88478.0,88468.0,0.01454085]
[1740557498641,0.169535,88477.0,88468.0,0.01454085]
[1740557498935,0.169535,88477.0,88465.0,0.18409885]
[1740557499073,0.169537,88477.0,88465.0,0.18409885]
[1740557499279,0.3,88497.0,88467.0,0.01454085]
[1740557499495,0.169536,88477.0,88462.0,0.01454085]
[1740557499702,0.169533,88479.0,88467.0,0.169554]
[1740557499902,0.226034,88482.0,88468.0,0.01612313]
[1740557500104,0.169533,88479.0,88468.0,0.18567513]
[1740557500340,0.226001,88495.0,88468.0,0.01612313]
[1740557500678,0.16952,88485.0,88475.0,0.01454085]
[1740557500859,0.16952,88485.0,88476.0,0.00158218]
[1740557501040,0.03599932,88496.0,88477.0,0.01454085]
[1740557501041,0.3,88496.0,88477.0,0.01454085]
[1740557501384,0.3,88499.0,88479.0,0.01454085]
[1740557501626,0.225981,88503.0,88480.0,0.1711111]
[1740557501627,0.3,88491.0,88480.0,0.1711111]
[1740557501834,0.225986,88501.0,88481.0,0.01454085]
[1740557502041,0.00041852,88491.0,88485.0,0.169519]
[1740557502246,0.00041852,88491.0,88483.0,0.01454085]
[1740557502459,0.00041852,88491.0,88485.0,0.226027]
[1740557502810,0.00041852,88491.0,88487.0,0.169514]
[1740557503008,0.00041852,88491.0,88488.0,0.169514]
[1740557503236,0.00041852,88491.0,88484.0,0.00158202]
[1740557503441,0.00041852,88491.0,88485.0,0.16952]
[1740557503644,0.00041852,88491.0,88486.0,0.01454085]
[1740557503980,0.00041852,88491.0,88490.0,0.16951]
[1740557504192,0.00041852,88491.0,88490.0,0.17109194]
[1740557504680,0.00041852,88491.0,88490.0,0.16951]
[1740557504825,0.00041852,88491.0,88490.0,0.17109194]
[1740557505026,0.00041852,88491.0,88490.0,0.18405085]
[1740557505244,0.00041852,88491.0,88490.0,0.18563279]
[1740557505445,0.00041852,88491.0,88490.0,0.18405085]
[1740557505978,0.00041852,88491.0,88490.0,0.24431158]
[1740557506181,0.00041852,88491.0,88490.0,0.24272969]
[1740557507653,0.00041852,88491.0,88482.0,0.01312]
[1740557507654,0.169623,88431.0,88425.0,0.0756]
[1740557507868,0.00867289,88486.0,88425.0,0.0756]
[1740557507869,0.3,88482.0,88425.0,0.0756]
[1740557508079,0.05410974,88481.0,88426.0,0.00158306]
[1740557508508,0.226106,88455.0,88427.0,0.16963]
[1740557508728,0.05410974,88481.0,88429.0,0.01454085]
[1740557509034,0.05410974,88481.0,88425.0,0.0756]
[1740557509035,0.05410974,88481.0,88431.0,0.01454085]
[1740557509253,0.3,88468.0,88433.0,0.01454085]
[1740557509456,0.169595,88446.0,88434.0,0.00158282]
[1740557509657,0.3,88468.0,88435.0,0.01454085]
[1740557509795,0.169554,88467.0,88435.0,0.01454085]
[1740557510002,0.169623,88431.0,88430.0,0.013]
[1740557510255,0.169612,88437.0,88430.0,0.013]
[1740557510485,0.169619,88434.0,88430.0,0.013]
[1740557510675,0.3,88464.0,88430.0,0.013]
[1740557510911,0.169622,88432.0,88430.0,0.013]
[1740557511116,0.169633,88426.0,88425.0,0.07572534]
[1740557511408,0.3,88478.0,88425.0,0.08828696]
[1740557511634,0.50620374,88477.0,88425.0,0.08828696]
[1740557511828,0.169622,88432.0,88425.0,0.07572534]
[1740557512034,0.226101,88456.0,88426.0,0.01255985]
[1740557512174,0.169628,88429.0,88427.0,0.01454085]
[1740557512373,0.226106,88454.0,88428.0,0.01255631]
[1740557512584,0.169614,88436.0,88426.0,0.01454085]
[1740557512788,0.3,88457.0,88427.0,0.01414114]
[1740557513203,0.226108,88453.0,88427.0,0.01414114]
[1740557513608,0.226108,88453.0,88428.0,0.01454085]
[1740557513815,0.3,88452.0,88429.0,0.01413753]
[1740557514137,0.169604,88442.0,88430.0,0.01454085]
[1740557514525,0.05410974,88481.0,88432.0,0.01454085]
[1740557514707,0.226039,88480.0,88442.0,0.169602]
[1740557514910,0.169571,88459.0,88444.0,0.24067185]
[1740557515099,0.35410974,88479.0,88445.0,0.17117773]
[1740557515303,0.35410974,88479.0,88445.0,0.01247992]
[1740557515523,0.169576,88456.0,88445.0,0.01247992]
[1740557515704,0.169577,88455.0,88445.0,0.01247992]
[1740557515942,0.169579,88455.0,88445.0,0.01247992]
[1740557516113,0.169579,88454.0,88445.0,0.01247992]
[1740557516358,0.169589,88449.0,88445.0,0.01247992]
[1740557516568,0.169587,88450.0,88445.0,0.01247992]
[1740557516772,0.169587,88450.0,88440.0,0.01454085]
[1740557517255,0.169587,88450.0,88442.0,0.01454085]
[1740557517693,0.395654,88461.0,88444.0,0.01454085]
[1740557517896,0.3,88466.0,88444.0,0.01454085]
[1740557518110,0.3,88466.0,88443.0,0.01248345]
[1740557518111,0.3,88466.0,88443.0,0.1696]
[1740557518233,0.3,88466.0,88444.0,0.18413885]
[1740557518437,0.169579,88455.0,88446.0,0.01454085]
[1740557518686,0.226028,88485.0,88448.0,0.01454085]
[1740557518890,0.226028,88485.0,88453.0,0.169581]
[1740557519101,0.169561,88464.0,88453.0,0.01454085]
[1740557519304,0.05410974,88492.0,88455.0,0.01454085]
[1740557519500,0.05410974,88492.0,88458.0,0.169571]
[1740557519711,0.226006,88493.0,88460.0,0.18410885]
[1740557519859,0.169552,88468.0,88460.0,0.01454085]
[1740557520065,0.00041852,88468.0,88461.0,0.01245162]
[1740557520416,0.169564,88462.0,88461.0,0.01245162]
[1740557520634,0.169573,88458.0,88454.0,0.1288]
[1740557520806,0.169576,88456.0,88455.0,0.01246223]
[1740557521014,0.169577,88455.0,88454.0,0.1288]
[1740557521416,0.169572,88458.0,88454.0,0.1288]
[1740557521615,0.226064,88471.0,88454.0,0.1288]
[1740557521616,0.169574,88457.0,88455.0,0.01246223]
[1740557521833,0.22605,88476.0,88454.0,0.1288]
[1740557522052,0.169577,88455.0,88454.0,0.1288]
[1740557522397,0.169573,88457.0,88454.0,0.1288]
[1740557522601,0.02908811,88493.0,88455.0,0.01454085]
[1740557522861,0.226053,88475.0,88457.0,0.01454085]
[1740557523036,0.169543,88473.0,88464.0,0.16956]
[1740557523247,0.226032,88483.0,88467.0,0.169554]
[1740557523448,0.169527,88482.0,88467.0,0.169554]
[1740557523771,0.226034,88483.0,88467.0,0.182274]
[1740557523988,0.169529,88480.0,88467.0,0.182274]
[1740557524147,0.226026,88486.0,88467.0,0.182274]
[1740557524493,0.169529,88481.0,88467.0,0.182274]
[1740557524695,0.169536,88477.0,88467.0,0.18385637]
[1740557524853,0.169538,88476.0,88467.0,0.182274]
[1740557525064,0.16997052,88468.0,88467.0,0.01272]
[1740557525467,0.00041852,88468.0,88467.0,0.01272]
[1740557526434,0.00041852,88468.0,88465.0,0.18409785]
[1740557526665,0.00041852,88468.0,88467.0,0.01268]
[1740557526867,0.00041852,88468.0,88467.0,0.182234]
[1740557527019,0.00041852,88468.0,88467.0,0.19835721]
[1740557527822,0.169504,88493.0,88484.0,0.169521]
[1740557528022,0.169506,88493.0,88484.0,0.16964634]
[1740557528187,0.02875966,88498.0,88484.0,0.00012534]
[1740557528391,0.3293,88499.0,88484.0,0.00012534]
[1740557528590,0.225978,88504.0,88490.0,0.16951]
[1740557528829,0.225966,88509.0,88485.0,0.0778]
[1740557528830,0.225966,88509.0,88486.0,0.01454085]
[1740557529030,0.169507,88492.0,88486.0,0.01454085]
[1740557529345,0.169508,88492.0,88486.0,0.01454085]
[1740557529572,0.62867939,88500.0,88486.0,0.01454085]
[1740557529928,0.169503,88494.0,88486.0,0.18405785]
[1740557530132,0.62867939,88500.0,88486.0,0.18405785]
[1740557530133,0.62867939,88500.0,88486.0,0.01454085]
[1740557530328,0.169497,88497.0,88489.0,0.169511]
[1740557530539,0.62867939,88500.0,88486.0,0.01454085]
[1740557530811,0.79817139,88500.0,88491.0,0.169506]
[1740557531015,0.169506,88492.0,88488.0,0.047]
[1740557531185,0.226004,88494.0,88488.0,0.047]
[1740557531340,0.62867939,88500.0,88488.0,0.047]
[1740557531545,0.169504,88494.0,88488.0,0.047]
[1740557531748,0.62867939,88500.0,88488.0,0.047]
[1740557532157,0.169511,88490.0,88489.0,0.01256]
[1740557532387,0.169511,88490.0,88489.0,0.02496213]
[1740557532980,0.62867939,88500.0,88489.0,0.02496213]
[1740557532981,0.169508,88491.0,88489.0,0.02496213]
[1740557533175,0.62867939,88500.0,88489.0,0.02496213]
[1740557533525,0.16952,88485.0,88484.0,0.00012534]
[1740557534865,0.225993,88498.0,88484.0,0.00012534]
[1740557535072,0.225981,88503.0,88484.0,0.00012534]
[1740557535673,0.169518,88487.0,88485.0,0.0124092]
[1740557535874,0.225991,88499.0,88485.0,0.0124092]
[1740557536077,0.169515,88488.0,88484.0,0.00012534]
[1740557536220,0.169516,88487.0,88486.0,0.01116669]
[1740557536422,0.62952779,88500.0,88484.0,0.00012534]
[1740557536664,0.169519,88486.0,88484.0,0.00012534]
[1740557536819,0.225993,88498.0,88485.0,0.01116828]
[1740557537037,0.169512,88490.0,88484.0,0.00012534]
[1740557537517,0.62952779,88500.0,88484.0,0.00012534]
[1740557537687,0.79901979,88500.0,88484.0,0.00170741]
[1740557537888,0.62952779,88500.0,88486.0,0.226024]
[1740557538108,0.62952779,88500.0,88485.0,0.01454085]
[1740557538300,0.169505,88493.0,88487.0,0.01240566]
[1740557538507,0.62952779,88500.0,88484.0,0.00012534]
[1740557538928,0.62952779,88500.0,88485.0,0.0124]
[1740557539129,0.62952779,88500.0,88486.0,0.01454085]
[1740557539290,0.169516,88487.0,88486.0,0.01454085]
[1740557539749,0.225996,88497.0,88486.0,0.01454085]
[1740557540174,0.169513,88489.0,88487.0,0.01240566]
[1740557540434,0.169514,88488.0,88487.0,0.01240566]
[1740557540846,0.169501,88495.0,88487.0,0.169514]
[1740557541098,0.169505,88493.0,88487.0,0.169514]
[1740557541310,0.169504,88494.0,88488.0,0.0124039]
[1740557541528,0.62952779,88500.0,88488.0,0.0124039]
[1740557541747,0.62952779,88500.0,88487.0,0.169516]
[1740557541997,0.62952779,88500.0,88489.0,0.01240213]
[1740557542190,0.6008484,88500.0,88499.0,0.169493]
[1740557542622,0.6008484,88500.0,88499.0,0.19641831]
[1740557542827,0.6008484,88500.0,88499.0,0.32321831]
[1740557545224,0.6008484,88500.0,88499.0,0.43696584]
[1740557545623,0.53570481,88500.0,88499.0,0.43696584]
[1740557545824,0.44655165,88500.0,88499.0,0.43696584]
[1740557546022,0.04589981,88500.0,88499.0,0.43696584]
[1740557546200,0.0002,88529.0,88528.0,0.169437]
[1740557546407,0.0002,88529.0,88528.0,0.181757]
[1740557546601,0.0002,88529.0,88528.0,0.19629785]
[1740557546808,0.0002,88529.0,88528.0,0.28239777]
[1740557547059,0.0002,88529.0,88528.0,0.11296077]
[1740557547873,0.169636,88529.0,88528.0,0.11296077]
[1740557548092,0.169636,88529.0,88528.0,0.08609992]
[1740557548374,0.169462,88516.0,88515.0,0.0771]
[1740557548602,0.169462,88516.0,88515.0,0.08934]
[1740557548843,0.225917,88528.0,88515.0,0.08934]
[1740557549080,0.0002,88529.0,88522.0,0.169448]
[1740557549298,0.0002,88529.0,88515.0,0.1016962]
[1740557549299,0.0002,88529.0,88528.0,0.18397785]
[1740557549725,0.0002,88529.0,88528.0,0.19665901]
[1740557550988,0.0002,88529.0,88528.0,0.24295901]
[1740557551187,0.0002,88529.0,88528.0,0.3551253]
[1740557551925,0.0002,88529.0,88528.0,0.6802253]
[1740557552106,0.0002,88529.0,88528.0,0.7565253]
[1740557554575,0.0002,88529.0,88528.0,0.77615935]
[1740557555754,0.0002,88529.0,88528.0,1.07615935]
[1740557556612,0.225805,88572.0,88538.0,0.469418]
[1740557556815,0.169355,88571.0,88538.0,0.59770638]
[1740557556940,0.169353,88573.0,88538.0,0.60879041]
[1740557557143,0.225799,88575.0,88538.0,0.60879041]
[1740557557374,0.225807,88572.0,88538.0,0.60879041]
[1740557557572,0.169369,88564.0,88538.0,0.60879041]
[1740557557770,0.225813,88569.0,88538.0,0.60879041]
[1740557557936,0.169379,88559.0,88538.0,0.60879041]
[1740557558137,0.169381,88558.0,88538.0,0.62842446]
[1740557558347,0.225828,88563.0,88538.0,0.62842446]
[1740557558561,0.22585,88555.0,88538.0,0.62842446]
[1740557558765,0.169389,88554.0,88538.0,0.62842446]
[1740557558938,0.225838,88560.0,88538.0,0.62842446]
[1740557559382,0.169381,88558.0,88538.0,0.62842446]
[1740557559577,0.225845,88556.0,88538.0,0.62842446]
[1740557560105,0.22585,88555.0,88538.0,0.62842446]
[1740557560286,0.225844,88557.0,88538.0,0.62842446]
[1740557560691,0.169392,88552.0,88538.0,0.62842446]
[1740557561125,0.22585,88555.0,88538.0,0.62842446]
[1740557561337,0.225826,88564.0,88538.0,0.62842446]
[1740557561527,0.169389,88554.0,88538.0,0.62842446]
[1740557561721,0.169389,88554.0,88538.0,0.60879041]
[1740557561965,0.225826,88564.0,88538.0,0.60879041]
[1740557562197,0.169376,88561.0,88538.0,0.60879041]
[1740557562394,0.169381,88558.0,88538.0,0.60879041]
[1740557562563,0.3,88577.0,88538.0,0.60879041]
[1740557562755,0.225852,88554.0,88538.0,0.60879041]
[1740557563026,0.225845,88557.0,88538.0,0.60879041]
[1740557563253,0.225829,88563.0,88538.0,0.03770488]
[1740557563505,0.1702668,88539.0,88538.0,0.01108403]
[1740557563724,0.1702668,88539.0,88538.0,0.01963405]
[1740557563948,0.1702668,88539.0,88538.0,0.0341749]
[1740557564189,0.0008508,88539.0,88538.0,0.0341749]
[1740557564380,0.0008508,88539.0,88538.0,0.0462549]
[1740557564613,0.0008508,88539.0,88538.0,0.21221608]
[1740557564844,0.0008508,88539.0,88538.0,0.04279808]
[1740557565090,0.0008508,88539.0,88538.0,0.05733893]
[1740557565526,0.0008508,88539.0,88538.0,0.22675693]
[1740557565760,0.0008508,88539.0,88538.0,0.20712288]
[1740557566932,0.0008508,88539.0,88538.0,0.20870399]
[1740557568631,0.0008508,88539.0,88538.0,0.32245152]
[1740557568862,0.0008508,88539.0,88538.0,0.37189119]
[1740557569070,0.0008508,88539.0,88538.0,0.67189119]
[1740557569284,0.0008508,88539.0,88538.0,0.71839119]
[1740557569492,8e-07,88539.0,88538.0,0.71839119]
[1740557569713,8e-07,88539.0,88538.0,0.80129119]
[1740557569952,8e-07,88546.0,88545.0,0.169405]
[1740557570150,0.169328,88586.0,88554.0,0.22585]
[1740557570362,0.169328,88585.0,88580.0,0.01454085]
[1740557570567,0.225738,88598.0,88582.0,0.169334]
[1740557570766,0.225738,88598.0,88583.0,0.01454085]
[1740557570984,0.3,88594.0,88582.0,0.01454085]
[1740557571186,0.2511041,88598.0,88583.0,0.01454085]
[1740557571597,0.0253661,88598.0,88582.0,0.01454085]
[1740557571798,0.169332,88583.0,88582.0,0.01454085]
[1740557573735,0.169332,88583.0,88582.0,0.03420989]
[1740557574094,0.169332,88583.0,88582.0,0.03158904]
[1740557574898,0.169332,88583.0,88582.0,0.01966904]
[1740557576927,0.0004238,88588.0,88561.0,0.01192]
[1740557576928,0.225774,88584.0,88561.0,0.01192]
[1740557577128,0.16937,88563.0,88562.0,0.01454085]
[1740557577557,0.16937,88563.0,88562.0,0.02558677]
[1740557577978,0.16937,88563.0,88562.0,0.01454085]
[1740557578189,0.0485,88584.0,88538.0,0.215917]
[1740557578399,0.00041878,88563.0,88545.0,0.01188]
[1740557578608,0.169403,88546.0,88545.0,0.02295291]
[1740557579023,0.169403,88546.0,88545.0,0.01188]
[1740557579855,0.169403,88546.0,88545.0,0.02642085]
[1740557580064,0.225813,88569.0,88533.0,0.0778]
[1740557580065,0.00853691,88586.0,88548.0,0.01454085]
[1740557580291,4.70906595,88600.0,88550.0,0.01454085]
[1740557580478,0.3,88597.0,88550.0,0.01454085]
[1740557580676,0.169386,88555.0,88546.0,0.01454085]
[1740557580883,0.225804,88572.0,88549.0,0.01454085]
[1740557581086,0.3,88571.0,88550.0,0.00158085]
[1740557581298,0.225812,88569.0,88552.0,0.01454085]
[1740557581500,0.169378,88560.0,88554.0,0.01454085]
[1740557581703,0.169317,88591.0,88556.0,0.01454085]
[1740557581909,0.10222087,88630.0,88558.0,0.01454085]
[1740557581910,0.225732,88601.0,88558.0,0.01454085]
[1740557582115,0.225732,88601.0,88560.0,0.01454085]
[1740557582116,0.225797,88575.0,88560.0,0.01454085]
[1740557582319,0.3,88574.0,88566.0,0.01454085]
[1740557582550,0.225732,88601.0,88564.0,0.01454085]
[1740557582551,0.169347,88576.0,88564.0,0.01454085]
[1740557582759,0.225783,88581.0,88568.0,0.3]
[1740557582975,0.31933596,88605.0,88575.0,0.225795]
[1740557583179,0.16933,88584.0,88578.0,0.169341]
[1740557583395,0.225781,88582.0,88579.0,0.01188]
[1740557583600,0.169338,88580.0,88579.0,0.03743978]
[1740557584430,0.169338,88580.0,88579.0,0.02642085]
[1740557584807,0.169338,88580.0,88579.0,0.01454085]
[1740557585015,0.169338,88580.0,88579.0,0.02638085]
[1740557586473,0.169332,88583.0,88580.0,0.01454085]
[1740557586690,0.169336,88581.0,88580.0,0.01454085]
[1740557586902,0.169332,88584.0,88580.0,0.01454085]
[1740557587105,0.169336,88581.0,88580.0,0.01454085]
[1740557587319,0.225778,88583.0,88580.0,0.01454085]
[1740557587524,0.169336,88581.0,88580.0,0.01454085]
[1740557587724,0.169336,88581.0,88580.0,0.02555819]
[1740557587872,0.225751,88594.0,88580.0,0.02555819]
[1740557588091,0.169333,88583.0,88580.0,0.01454085]
[1740557588287,0.169336,88581.0,88580.0,0.01454085]
[1740557588712,0.169334,88582.0,88580.0,0.01454085]
[1740557589367,0.225751,88593.0,88582.0,0.01454085]
[1740557589575,0.225737,88599.0,88580.0,0.01612117]
[1740557589576,0.3,88599.0,88580.0,0.01612117]
[1740557589775,0.225753,88593.0,88581.0,0.01454085]
[1740557589984,0.225737,88599.0,88583.0,0.01454085]
[1740557590188,0.31933596,88605.0,88584.0,0.01454085]
[1740557590403,4.90361773,88600.0,88594.0,0.01454085]
[1740557590600,4.70906595,88600.0,88599.0,0.18384285]
[1740557591436,4.70906595,88600.0,88599.0,0.01454085]
[1740557592885,4.70906595,88600.0,88585.0,0.0465]
[1740557593095,0.169314,88593.0,88586.0,0.169326]
[1740557593304,4.70906595,88600.0,88586.0,0.01454085]
[1740557593505,0.169313,88594.0,88586.0,0.20354761]
[1740557593728,4.70906595,88600.0,88586.0,0.03422161]
[1740557593935,0.169317,88591.0,88586.0,0.03422161]
[1740557594145,0.169319,88590.0,88586.0,0.03422161]
[1740557594876,0.169325,88587.0,88586.0,0.03422161]
[1740557595085,0.169325,88587.0,88586.0,0.04594161]
[1740557595312,0.169325,88587.0,88586.0,0.02626085]
[1740557596973,4.93522325,88600.0,88586.0,0.02626085]
[1740557597104,0.169319,88590.0,88586.0,0.02626085]
[1740557597328,0.169315,88593.0,88586.0,0.19558585]
[1740557597510,0.169311,88595.0,88589.0,0.01454085]
[1740557597713,4.70948925,88600.0,88586.0,0.01172]
[1740557597960,4.87878925,88600.0,88595.0,0.01454085]
[1740557598161,4.70948925,88600.0,88595.0,0.18384985]
[1740557598544,4.70948925,88600.0,88593.0,0.01454085]
[1740557598765,4.70948925,88600.0,88587.0,0.01454085]
[1740557598946,0.169323,88588.0,88587.0,0.01454085]
[1740557599142,0.169323,88588.0,88587.0,0.02622085]
[1740557599363,0.169321,88589.0,88587.0,0.02622085]
[1740557599716,0.225736,88599.0,88587.0,0.02622085]
[1740557599895,4.70948925,88600.0,88587.0,0.02622085]
[1740557600117,4.70948925,88600.0,88590.0,0.01454085]
[1740557600323,0.225736,88599.0,88589.0,0.01454085]
[1740557600515,0.169316,88592.0,88589.0,0.01454085]
[1740557600718,0.169317,88591.0,88589.0,0.01454085]
[1740557600919,0.169308,88596.0,88591.0,0.01454085]
[1740557601253,0.169304,88598.0,88592.0,0.18385485]
[1740557601427,4.70948925,88600.0,88594.0,0.01454085]
[1740557601580,4.70948925,88600.0,88589.0,0.01454085]
[1740557601785,0.169319,88590.0,88589.0,0.01454085]
[1740557602618,0.169317,88592.0,88589.0,0.01454085]
[1740557602825,0.169317,88591.0,88589.0,0.01454085]
[1740557602988,0.169319,88590.0,88589.0,0.01454085]
[1740557604393,0.169316,88592.0,88589.0,0.01454085]
[1740557604661,0.225742,88597.0,88589.0,0.01454085]
[1740557604804,0.169315,88592.0,88589.0,0.01454085]
[1740557605005,0.225742,88597.0,88589.0,0.01454085]
[1740557605233,0.169311,88595.0,88589.0,0.01454085]
[1740557605433,4.70948925,88600.0,88589.0,0.01454085]
[1740557605639,0.169319,88590.0,88589.0,0.01454085]
[1740557606921,0.169332,88583.0,88582.0,0.0786]
[1740557607123,0.169332,88583.0,88582.0,0.09028562]
[1740557607324,0.169332,88583.0,88582.0,0.10482647]
[1740557612698,0.16933,88584.0,88583.0,0.01454085]
[1740557612836,0.169328,88585.0,88583.0,0.01454085]
[1740557613048,0.169327,88586.0,88583.0,0.01454085]
[1740557613386,0.16933,88584.0,88583.0,0.01454085]
[1740557615972,0.225771,88586.0,88583.0,0.01454085]
[1740557616174,0.225744,88596.0,88583.0,0.01454085]
[1740557616393,0.225767,88587.0,88583.0,0.01454085]
[1740557616796,0.3,88599.0,88588.0,0.01454085]
[1740557617336,0.3,88599.0,88583.0,0.01454085]
[1740557617544,0.169317,88591.0,88590.0,0.01454085]
[1740557617715,0.169312,88594.0,88590.0,0.01454085]
[1740557617897,0.3,88599.0,88590.0,0.01454085]
[1740557618101,0.169314,88593.0,88590.0,0.01454085]
[1740557618820,0.229066,88595.0,88590.0,0.01454085]
[1740557619031,0.225748,88594.0,88590.0,0.01454085]
[1740557619199,0.00332,88595.0,88590.0,0.01454085]
[1740557619407,0.225751,88593.0,88590.0,0.01454085]
[1740557619946,0.169317,88591.0,88590.0,0.01454085]
[1740557620262,0.00332,88595.0,88590.0,0.01454085]
[1740557620564,0.00332,88595.0,88594.0,0.18385185]
[1740557621531,0.00332,88595.0,88594.0,0.01454085]
[1740557623184,0.172629,88595.0,88594.0,0.01454085]
[1740557623341,0.172629,88595.0,88594.0,0.02586085]
[1740557626818,0.00332,88595.0,88586.0,0.01128]
[1740557627017,0.169325,88587.0,88586.0,0.02582085]
[1740557627418,0.169325,88587.0,88586.0,0.03682867]
[1740557627618,0.00332,88595.0,88587.0,0.01454085]
[1740557627826,0.00332,88595.0,88594.0,0.18385185]
[1740557628170,0.00332,88595.0,88594.0,0.01454085]
[1740557628363,0.00332,88595.0,88594.0,0.18385185]
[1740557628972,0.00332,88595.0,88594.0,0.01454085]
[1740557629530,0.172629,88595.0,88594.0,0.01454085]
[1740557629812,0.172629,88595.0,88582.0,0.30450362]
[1740557629813,0.16933,88584.0,88582.0,0.00012562]
[1740557630020,0.00332,88595.0,88582.0,0.00012562]
[1740557630221,0.00332,88595.0,88584.0,0.01454085]
[1740557630488,0.169328,88585.0,88584.0,0.01454085]
[1740557631691,0.169328,88585.0,88584.0,0.02555185]
[1740557631870,0.169328,88585.0,88584.0,0.01454085]
[1740557635666,0.0037433,88595.0,88584.0,0.01454085]